Workbook

Sheet Project Type Data (hidden)
C1: SitePrint Productivity (m²) | F1: SitePrint Productivity (ft²) | I1: Manual Productivity (m²) | L1: Manual Productivity (ft²) | O1: SitePrint Productivity (points) | R1: Manual Productivity (points)
A2: Project Type | B2: Average $/sqft | C2: High Density | D2: Medium Density | E2: Low Density | F2: High Density | G2: Medium Density | H2: Low Density | I2: High Density | J2: Medium Density | K2: Low Density | L2: High Density | M2: Medium Density | N2: Low Density | O2: High Density | P2: Medium Density | Q2: Low Density | R2: High Density | S2: Medium Density | T2: Low Density
A3: Hospitals and Other Health Treatment | B3: 531.571755 | C3: =+ROUNDUP(D3*0.75,-1) -> 230 | D3: 300 | E3: =+ROUNDUP(D3*1.25,-1) -> 380 | F3: =+ROUNDUP(C3*10,-1) -> 2300 | G3: =+ROUNDUP(D3*10,-1) -> 3000 | H3: =+ROUNDUP(E3*10,-1) -> 3800 | I3: =ROUNDUP(C3/8/5,0)*5 -> 30 | J3: =ROUNDUP(D3/8/5,0)*5 -> 40 | K3: =ROUNDUP(E3/8/5,0)*5 -> 50 | L3: =ROUNDUP(I3*10/5,0)*5 -> 300 | M3: =ROUNDUP(J3*10/5,0)*5 -> 400 | N3: =ROUNDUP(K3*10/5,0)*5 -> 500 | O3: 100 | P3: 200 | Q3: 300 | R3: 20 | S3: 40 | T3: 80
A4: Hotels | B4: 278.5630567 | C4: =+ROUNDUP(D4*0.75,-1) -> 230 | D4: 300 | E4: =+ROUNDUP(D4*1.25,-1) -> 380 | F4: =+ROUNDUP(C4*10,-1) -> 2300 | G4: =+ROUNDUP(D4*10,-1) -> 3000 | H4: =+ROUNDUP(E4*10,-1) -> 3800 | I4: 30 | J4: =ROUNDUP(D4/8/5,0)*5 -> 40 | K4: 50 | L4: =ROUNDUP(I4*10/5,0)*5 -> 300 | M4: 400 | N4: 500 | O4: 100 | P4: 200 | Q4: 300 | R4: 20 | S4: 40 | T4: 80
A5: Manufacturing Plants | B5: 645.0273992 | C5: 300 | D5: 400 | E5: 500 | F5: 3000 | G5: 4000 | H5: =+ROUNDUP(E5*10,-1) -> 5000 | I5: 40 | J5: 50 | K5: 65 | L5: 400 | M5: 500 | N5: 650 | O5: 100 | P5: 200 | Q5: 300 | R5: 20 | S5: 40 | T5: 80
A6: Office and Bank Buildings | B6: 433.4391786 | C6: 270 | D6: 350 | E6: 440 | F6: 2700 | G6: 3500 | H6: 4400 | I6: 35 | J6: 45 | K6: 55 | L6: 350 | M6: 450 | N6: 550 | O6: 100 | P6: 200 | Q6: 300 | R6: 20 | S6: 40 | T6: 80
A7: Parking Garages | B7: 111.2050853 | C7: 380 | D7: 500 | E7: 630 | F7: 3800 | G7: 5000 | H7: 6300 | I7: 50 | J7: 65 | K7: 80 | L7: 500 | M7: 650 | N7: 800 | O7: 100 | P7: 200 | Q7: 300 | R7: 20 | S7: 40 | T7: 80
A8: Schools, Libraries, and Labs | B8: 553.5190607 | C8: 230 | D8: 300 | E8: 380 | F8: 2300 | G8: 3000 | H8: 3800 | I8: 30 | J8: 40 | K8: 50 | L8: 300 | M8: 400 | N8: 500 | O8: 100 | P8: 200 | Q8: 300 | R8: 20 | S8: 40 | T8: 80
A9: Warehouses | B9: 83.90911208 | C9: 300 | D9: 400 | E9: 500 | F9: 3000 | G9: 4000 | H9: 5000 | I9: 40 | J9: 50 | K9: 65 | L9: 400 | M9: 500 | N9: 650 | O9: 100 | P9: 200 | Q9: 300 | R9: 20 | S9: 40 | T9: 80
A10: Dormitories | B10: 392.3782909 | C10: 230 | D10: 300 | E10: 380 | F10: 2300 | G10: 3000 | H10: 3800 | I10: 30 | J10: 40 | K10: 50 | L10: 300 | M10: 400 | N10: 500 | O10: 100 | P10: 200 | Q10: 300 | R10: 20 | S10: 40 | T10: 80
A11: Residential Apartments | B11: 164.7026149 | C11: 230 | D11: 300 | E11: 380 | F11: 2300 | G11: 3000 | H11: 3800 | I11: 30 | J11: 40 | K11: 50 | L11: 300 | M11: 400 | N11: 500 | O11: 100 | P11: 200 | Q11: 300 | R11: 20 | S11: 40 | T11: 80
A12: Other | B12: 249.1627465 | C12: 230 | D12: 300 | E12: 380 | F12: 2300 | G12: 3000 | H12: 3800 | I12: 30 | J12: 40 | K12: 50 | L12: 300 | M12: 400 | N12: 500 | O12: 100 | P12: 200 | Q12: 300 | R12: 20 | S12: 40 | T12: 80

Sheet Country Data (hidden)
A1: Country | B1: Currency | C1: Metric | D1: Price per Area | E1: Price per Point | F1: SitePrint Hardware Price | G1: Average Hourly Rate | H1: Conversion 1 USD to local currency | I1: Robot Capping | J1: Project Capping | K1: Metric | V1: Country | W1: Currency | X1: Metric | Y1: Price per Area | Z1: Average Hourly Rate | AA1: Maximum Productivity (Assuming two professionals)
A2: Australia | B2: AUD | C2: m² | D2: 2.5 | E2: 2.5 | F2: 87950 | G2: 65 | H2: 1.45 | I2: 25000 | J2: 25000 | K2: m | O2: =+(G2*2)/Z2 -> 2 | S2: Australia | T2: 52 | V2: Australia | W2: AUD | X2: m² | Y2: 2.5 | Z2: 65 | AA2: =2*Z2/Y2 -> 52
A3: Austria | B3: EUR | C3: m² | D3: 1.3 | E3: 1.3 | F3: 49500 | G3: 55 | H3: 0.9 | I3: 13000 | J3: 15000 | K3: m | O3: 2 | S3: Austria | T3: 84.61538462 | V3: Austria | W3: EUR | X3: m² | Y3: 1.3 | Z3: 55 | AA3: =2*Z3/Y3 -> 84.61538462
A4: Belgium | B4: EUR | C4: m² | D4: 1.3 | E4: 1.3 | F4: 49500 | G4: 35 | H4: 0.9 | I4: 13000 | J4: 15000 | K4: m | O4: 2 | S4: Belgium | T4: 53.84615385 | V4: Belgium | W4: EUR | X4: m² | Y4: 1.3 | Z4: 35 | AA4: 53.84615385
A5: Canada | B5: CAD | C5: m² | D5: 2.5 | E5: 2.5 | F5: 71500 | G5: 110 | H5: 1.35 | I5: 16000 | J5: 25000 | K5: m | O5: 2 | S5: Canada | T5: 88 | V5: Canada | W5: CAD | X5: m² | Y5: 2.5 | Z5: 110 | AA5: 88
A6: Denmark | B6: DKK | C6: m² | D6: 13 | E6: 13 | F6: 350000 | G6: 385 | H6: 6.75 | I6: 130000 | J6: 130000 | K6: m | O6: 2 | S6: Denmark | T6: 59.23076923 | V6: Denmark | W6: DKK | X6: m² | Y6: 13 | Z6: 385 | AA6: 59.23076923
A7: France | B7: EUR | C7: m² | D7: 1.3 | E7: 1.3 | F7: 49500 | G7: 45 | H7: 0.9 | I7: 13000 | J7: 15000 | K7: m | O7: 2 | S7: France | T7: 69.23076923 | V7: France | W7: EUR | X7: m² | Y7: 1.3 | Z7: 45 | AA7: 69.23076923
A8: Germany | B8: EUR | C8: m² | D8: 1.3 | E8: 1.3 | F8: 49500 | G8: 55 | H8: 0.9 | I8: 13000 | J8: 15000 | K8: m | O8: 2 | S8: Germany | T8: 84.61538462 | V8: Germany | W8: EUR | X8: m² | Y8: 1.3 | Z8: 55 | AA8: 84.61538462
A9: Ireland | B9: EUR | C9: m² | D9: 1.3 | E9: 1.3 | F9: 49500 | G9: 45 | H9: 0.9 | I9: 13000 | J9: 13000 | K9: m | O9: 2 | S9: Ireland | T9: 69.23076923 | V9: Ireland | W9: EUR | X9: m² | Y9: 1.3 | Z9: 45 | AA9: 69.23076923
A10: Luxembourg | B10: EUR | C10: m² | D10: 1.3 | E10: 1.3 | F10: 49500 | G10: 55 | H10: 0.9 | I10: 13000 | J10: 15000 | K10: m | O10: 2 | S10: Luxembourg | T10: 84.61538462 | V10: Luxembourg | W10: EUR | X10: m² | Y10: 1.3 | Z10: 55 | AA10: 84.61538462
A11: Netherland | B11: EUR | C11: m² | D11: 1.3 | E11: 1.3 | F11: 49500 | G11: 45 | H11: 0.9 | I11: 13000 | J11: 15000 | K11: m | O11: 2 | S11: Netherland | T11: 69.23076923 | V11: Netherland | W11: EUR | X11: m² | Y11: 1.3 | Z11: 45 | AA11: 69.23076923
A12: New Zealand | B12: NZD | C12: m² | D12: 2.7 | E12: 2.7 | F12: 92950 | G12: 75 | H12: 1.59 | I12: 27000 | J12: 27000 | K12: m | O12: 2 | S12: New Zealand | T12: 55.55555556 | V12: New Zealand | W12: NZD | X12: m² | Y12: 2.7 | Z12: 75 | AA12: 55.55555556
A13: Norway | B13: NOK | C13: m² | D13: 17 | E13: 17 | F13: 570000 | G13: 485 | H13: 10.55 | I13: 170000 | J13: 170000 | K13: m | O13: 2 | S13: Norway | T13: 57.05882353 | V13: Norway | W13: NOK | X13: m² | Y13: 17 | Z13: 485 | AA13: 57.05882353
A14: Poland | B14: EUR | C14: m² | D14: 1.2 | E14: 1.2 | F14: 49500 | G14: 45 | H14: 0.9 | I14: 12000 | J14: 15000 | K14: m | O14: 2 | S14: Poland | T14: 75 | V14: Poland | W14: EUR | X14: m² | Y14: 1.2 | Z14: 45 | AA14: 75
A15: Portugal | B15: EUR | C15: m² | D15: 1.2 | E15: 1.2 | F15: 49500 | G15: 45 | H15: 0.9 | I15: 12000 | J15: 15000 | K15: m | O15: 2 | S15: Portugal | T15: 75 | V15: Portugal | W15: EUR | X15: m² | Y15: 1.2 | Z15: 45 | AA15: 75
A16: Switzerland | B16: CHF | C16: m² | D16: 1.5 | E16: 1.5 | F16: 49500 | G16: 75 | H16: 0.85 | I16: 15000 | J16: 15000 | K16: m | O16: 2 | S16: Schwitzerland | T16: 100 | V16: Schwitzerland | W16: CHF | X16: m² | Y16: 1.5 | Z16: 75 | AA16: 100
A17: Spain | B17: EUR | C17: m² | D17: 1.2 | E17: 1.2 | F17: 49500 | G17: 45 | H17: 0.9 | I17: 12000 | J17: 15000 | K17: m | O17: 2 | S17: Spain | T17: 75 | V17: Spain | W17: EUR | X17: m² | Y17: 1.2 | Z17: 45 | AA17: 75
A18: Sweden | B18: SEK | C18: m² | D18: 17 | E18: 17 | F18: 570000 | G18: 430 | H18: 10.26 | I18: 170000 | J18: 170000 | K18: m | O18: 2 | S18: Sweden | T18: 50.58823529 | V18: Sweden | W18: SEK | X18: m² | Y18: 17 | Z18: 430 | AA18: 50.58823529
A19: United Kingdom | B19: GBP | C19: m² | D19: 1.1 | E19: 1.1 | F19: 44000 | G19: 45 | H19: 0.75 | I19: 11000 | J19: 11000 | K19: m | O19: 2 | S19: United Kingdom | T19: 81.81818182 | V19: United Kingdom | W19: GBP | X19: m² | Y19: 1.1 | Z19: 45 | AA19: 81.81818182
A20: United States | B20: USD | C20: ft² | D20: 0.2 | E20: 2 | F20: 54950 | G20: 75 | H20: 1 | I20: 12000 | J20: 20000 | K20: ft | O20: 2 | S20: United States | T20: 70.09345794 | V20: United States | W20: USD | X20: ft² | Y20: 0.2 | Z20: 75 | AA20: 750

Sheet Data Validation (hidden)
A1: Point Only | E1: =+IF('Area Model'!E5="United States","ft/h","m/h") -> ft/h | G1: m/h
A2: Linework | E2: =+IF('Area Model'!E5="United States","ft²/h","m²/h") -> ft²/h | G2: m²/h
G3: ft/h
A4: General Contractor (Self-Perform) | G4: ft²/h
A5: General Contractor (Non Self-Perform)
A6: Specialty Trade - Interior Contractor
A7: Specialty Trade - MEP/FP Contractor
A8: Specialty Trade - Concrete Contractor
A9: Geospatial Service Provider
A10: Industrial/Material Handling
A11: Other
A13: High Density
A14: Medium Density
A15: Low Density
A16: Other
A18: MRSP
A19: Other
A21: None (0%) | B21: 0
A22: Low (0.1 %) | B22: 0.001
A23: Medium (0.5%) | B23: 0.005
A24: High (1%) | B24: 0.01
A26: MSRP
A27: Custom price

Sheet How to use it
C2: Guide to Using the HP SitePrint ROI Tool

Sheet Area Model
C2: HP SitePrint ROI Tool - Area Model
C3: Project Details | H3: Pricing and Initial Investment
C5: Country | D5: Select country | E5: United States | H5: HP SitePrint Robot Pricing | J5: =IF(J15="Custom Price",M5,_xlfn.XLOOKUP(E5,'Country Data'!A:A,'Country Data'!F:F)) -> 58800 | K5: =_xlfn.XLOOKUP(E5,'Country Data'!A:A,'Country Data'!B:B) -> USD | M5: 58800 | N5: =+K5 -> USD
C7: Expected Layout Duration | D7: (Input duration) → | E7: 10 | F7: months | H7: HP SitePrint Usage Fee | J7: =IF(J15="Custom Price",M7,_xlfn.XLOOKUP('Area Model'!E5,'Country Data'!A:A,'Country Data'!D:D)) -> 0.2 | K7: =+CONCATENATE(_xlfn.XLOOKUP(E5,'Country Data'!A:A,'Country Data'!B:B),"/",_xlfn.XLOOKUP(E5,'Country Data'!A:A,'Country Data'!C:C)) -> USD/ft² | M7: 0.2 | N7: =+K7 -> USD/ft²
C9: Project Size | D9: (Input size) → | E9: 400000 | F9: =+_xlfn.XLOOKUP(E5,'Country Data'!A:A,'Country Data'!C:C) -> ft² | H9: Robot Capping | J9: =IF(J15="Custom Price",M9,_xlfn.XLOOKUP(E5,'Country Data'!A:A,'Country Data'!I:I)) -> 12000 | K9: =+CONCATENATE(_xlfn.XLOOKUP(E5,'Country Data'!A:A,'Country Data'!B:B),"/","Month") -> USD/Month | M9: 12000 | N9: =+K9 -> USD/Month
C11: Nº of SitePrint Robots | D11: (Input nº of robots) → | E11: 1 | F11: robots | H11: Project capping | J11: =IF(J15="Custom Price",M11,_xlfn.XLOOKUP(E5,'Country Data'!A:A,'Country Data'!J:J)) -> 12000 | K11: =+CONCATENATE(_xlfn.XLOOKUP(E5,'Country Data'!A:A,'Country Data'!B:B),"/","Month") -> USD/Month | M11: 12000 | N11: =+K11 -> USD/Month
C13: Total Station Cost | D13: (Input cost) → | E13: 0 | F13: =+_xlfn.XLOOKUP(E5,'Country Data'!A:A,'Country Data'!B:B) -> USD | H13: Initial investment | J13: =+J5*E11+E13*E11 -> 58800 | K13: =IF(N36="N/A","",_xlfn.XLOOKUP(E5,'Country Data'!A:A,'Country Data'!B:B)) -> USD
C15: Printed distance | D15: (Input distance) → | F15: =+_xlfn.XLOOKUP(E5,'Country Data'!A:A,'Country Data'!K:K) -> ft | J15: Custom price
C16: Project Layout expenses
E18: Traditional | J18: SitePrint
C20: Crew Size | D20: (Input crew size) → | E20: 2 | F20: people | I20: (Input crew size) → | J20: 1 | K20: people
C22: Hourly cost of layout professionals | D22: (Input cost) → | E22: 75 | F22: =+_xlfn.XLOOKUP(E5,'Country Data'!A:A,'Country Data'!B:B) -> USD | I22: (Input cost) → | J22: 75 | K22: =+_xlfn.XLOOKUP(E5,'Country Data'!A:A,'Country Data'!B:B) -> USD
C24: Productivitity | D24: (Input Productivity) → | E24: 330 | F24: ft²/h | I24: (Input Productivity) → | J24: 3600 | K24: =+F24 -> ft²/h | M24: Productivity Increase | N24: =IFERROR(CONCATENATE(ROUND((J24/E24),1),"x"),"") -> 10.9x | O24: =+IF(N24="","",IF((J24/E24)<=1,"","Faster")) -> Faster
C26: Layout Duration | E26: =+E27/8 -> 151.5151515 | F26: days | J26: =+J27/8 -> 13.88888889 | K26: days | M26: Layout time reduction | N26: =+E26-J26 -> 137.6262626 | O26: days
E27: =IF(OR(F24="m²/h", F24="ft²/h"), IFERROR(E9/E24,0), IF(OR(F24="m/h", F24="ft/h"), IFERROR(E15/E24,0), "")) -> 1212.121212 | F27: hours | J27: =IF(OR(K24="m²/h", K24="ft²/h"), IFERROR(E9/J24,0), IF(OR(F24="m/h", F24="ft/h"), IFERROR(E15/J24,0), "")) -> 111.1111111 | K27: hours | N27: =+E27-J27 -> 1101.010101 | O27: hours
E28: =+E27*E20 -> 2424.242424 | F28: manhours | J28: =+J27*J20 -> 111.1111111 | K28: manhours | N28: 2313.131313 | O28: manhours
C30: Labor Costs | E30: =+E27*E20*E22 -> 181818.1818 | F30: =+_xlfn.XLOOKUP(E5,'Country Data'!A:A,'Country Data'!B:B) -> USD | J30: =+J27*J20*J22 -> 8333.333333 | K30: =+_xlfn.XLOOKUP(E5,'Country Data'!A:A,'Country Data'!B:B) -> USD | M30: Labor Cost Reduction | N30: =+E30-J30 -> 173484.8485 | O30: =+_xlfn.XLOOKUP(E5,'Country Data'!A:A,'Country Data'!B:B) -> USD
C32: SitePrint Usage Fee | J32: =+E9*J7 -> 80000 | K32: =+_xlfn.XLOOKUP(E5,'Country Data'!A:A,'Country Data'!B:B) -> USD
C33: Robot Capping Discount | J33: =IFERROR(IF(J32/E11/E7<J9,0,((J9-(J32/E11/E7))*E7*E11)),0) -> 0 | K33: =+_xlfn.XLOOKUP(E5,'Country Data'!A:A,'Country Data'!B:B) -> USD
C34: Project Capping Discount | J34: =IFERROR(IF((J32+J33)/E7<J11,0,J11*(E7)-(J32+J33)),0) -> 0 | K34: =+_xlfn.XLOOKUP(E5,'Country Data'!A:A,'Country Data'!B:B) -> USD
C35: SitePrint Usage Fee After Cappings | J35: =+J32+J33+J34 -> 80000 | K35: =+_xlfn.XLOOKUP(E5,'Country Data'!A:A,'Country Data'!B:B) -> USD
C37: Layout Operational Expenses (Excluding D&A) | E37: =+E30+E35 -> 181818.1818 | F37: =+_xlfn.XLOOKUP(E5,'Country Data'!A:A,'Country Data'!B:B) -> USD | J37: =+J35+J30 -> 88333.33333 | K37: =+_xlfn.XLOOKUP(E5,'Country Data'!A:A,'Country Data'!B:B) -> USD | M37: Layout cost reduction | N37: =+E37-J37 -> 93484.84848 | O37: =+_xlfn.XLOOKUP(E5,'Country Data'!A:A,'Country Data'!B:B) -> USD
C39: Layout cost per area | E39: =IFERROR(E37/E9,0) -> 0.4545454545 | F39: =CONCATENATE(_xlfn.XLOOKUP(E5,'Country Data'!A:A,'Country Data'!B:B),"/",_xlfn.XLOOKUP(E5,'Country Data'!A:A,'Country Data'!C:C)) -> USD/ft² | J39: =IFERROR(J37/E9,0) -> 0.2208333333 | K39: =CONCATENATE(_xlfn.XLOOKUP(E5,'Country Data'!A:A,'Country Data'!B:B),"/",_xlfn.XLOOKUP(E5,'Country Data'!A:A,'Country Data'!C:C)) -> USD/ft² | M39: =+CONCATENATE("Layout cost reduction/",_xlfn.XLOOKUP(E5,'Country Data'!A:A,'Country Data'!C:C)) -> Layout cost reduction/ft² | N39: =+E39-J39 -> 0.2337121212 | O39: =+_xlfn.XLOOKUP(E5,'Country Data'!A:A,'Country Data'!B:B) -> USD
C41: Layout cost per distance | E41: =IF(E15="","",IFERROR(E37/E15,0)) ->  | F41: =CONCATENATE(_xlfn.XLOOKUP(E5,'Country Data'!A:A,'Country Data'!B:B),"/",_xlfn.XLOOKUP(E5,'Country Data'!A:A,'Country Data'!K:K)) -> USD/ft | J41: =IF(E15="","",IFERROR(J37/E15,0)) ->  | K41: =CONCATENATE(_xlfn.XLOOKUP(E5,'Country Data'!A:A,'Country Data'!B:B),"/",_xlfn.XLOOKUP(E5,'Country Data'!A:A,'Country Data'!K:K)) -> USD/ft | M41: =+CONCATENATE("Layout cost reduction/",_xlfn.XLOOKUP(E5,'Country Data'!A:A,'Country Data'!K:K)) -> Layout cost reduction/ft | N41: =IFERROR(E41-J41,0) -> 0 | O41: =+_xlfn.XLOOKUP(E5,'Country Data'!A:A,'Country Data'!B:B) -> USD
C43: Return on investment
C45: Iceberg Value
C46: Expected savings from Layout Labor Cost Reduction | D46: (Input savings) → | F46: =+_xlfn.XLOOKUP(E5,'Country Data'!A:A,'Country Data'!B:B) -> USD
C47: Expected savings from Schedule Reduction | D47: (Input savings) → | F47: =+_xlfn.XLOOKUP(E5,'Country Data'!A:A,'Country Data'!B:B) -> USD
C48: Expected savings from Rework | D48: (Input savings) → | F48: =+_xlfn.XLOOKUP(E5,'Country Data'!A:A,'Country Data'!B:B) -> USD
C49: Total Additional Savings | E49: =+E46+E47+E48 -> 0 | F49: =+_xlfn.XLOOKUP(E5,'Country Data'!A:A,'Country Data'!B:B) -> USD
C51: Payback Period | E51: =IFERROR(IF((J5*E11+E13*E11)/(N39+E49/E9)<=0,"N/A",(J5*E11+E13*E11)/(N39+E49/E9)),"") -> 251591.5721 | F51: =+_xlfn.XLOOKUP(E5,'Country Data'!A:A,'Country Data'!C:C) -> ft²
C52: Area threshold required to break even on the investment | E52: =IFERROR(IF(E51="N/A","N/A",E51/E9),"") -> 0.6289789303 | F52: projects
E53: =IFERROR(IF(E51="N/A","N/A",E52*E7),"") -> 6.289789303 | F53: months
C55: Notes
C56: -
C57: -
C58: -
C59: -
C60: -
C61: -

Sheet Point Model
C2: HP SitePrint ROI Tool - Point Model
C3: Project Details | H3: Pricing and Initial Investment
C5: Country | D5: Select country | E5: United States | H5: HP SitePrint Robot Pricing | J5: =IF(J15="Custom Price",M5,_xlfn.XLOOKUP(E5,'Country Data'!A:A,'Country Data'!F:F)) -> 54950 | K5: =_xlfn.XLOOKUP(E5,'Country Data'!A:A,'Country Data'!B:B) -> USD | N5: =+K5 -> USD
C7: Expected Layout Duration | D7: (Input duration) → | F7: months | H7: HP SitePrint Usage Fee | J7: =IF(J15="Custom Price",M7,_xlfn.XLOOKUP('Point Model'!E5,'Country Data'!A:A,'Country Data'!E:E)) -> 2 | K7: =+CONCATENATE(_xlfn.XLOOKUP(E5,'Country Data'!A:A,'Country Data'!B:B),"/","point") -> USD/point | N7: =+K7 -> USD/point
C9: Project Size | D9: (Input size) → | F9: points | H9: Robot Capping | J9: =IF(J15="Custom Price",M9,_xlfn.XLOOKUP(E5,'Country Data'!A:A,'Country Data'!I:I)) -> 12000 | K9: =+CONCATENATE(_xlfn.XLOOKUP(E5,'Country Data'!A:A,'Country Data'!B:B),"/","Month") -> USD/Month | N9: =+K9 -> USD/Month
C11: Nº of SitePrint Robots | D11: (Input nº of robots) → | F11: robots | H11: Project capping | J11: =IF(J15="Custom Price",M11,_xlfn.XLOOKUP(E5,'Country Data'!A:A,'Country Data'!J:J)) -> 20000 | K11: =+CONCATENATE(_xlfn.XLOOKUP(E5,'Country Data'!A:A,'Country Data'!B:B),"/","Month") -> USD/Month | N11: =+K11 -> USD/Month
C13: Total Station Cost | D13: (Input cost) → | F13: =+_xlfn.XLOOKUP(E5,'Country Data'!A:A,'Country Data'!B:B) -> USD | H13: Initial investment | J13: =+J5*E11+E13*E11 -> 0 | K13: =IF(N36="N/A","",_xlfn.XLOOKUP(E5,'Country Data'!A:A,'Country Data'!B:B)) -> USD
J15: MSRP
C16: Project Layout expenses
E18: Traditional | J18: SitePrint
C20: Crew Size | D20: (Input crew size) → | F20: people | I20: (Input crew size) → | K20: people
C22: Hourly cost of layout professionals | D22: (Input cost) → | F22: =+_xlfn.XLOOKUP(E5,'Country Data'!A:A,'Country Data'!B:B) -> USD | I22: (Input cost) → | K22: =+_xlfn.XLOOKUP(E5,'Country Data'!A:A,'Country Data'!B:B) -> USD
C24: Productivitity | D24: (Input Productivity) → | F24: points/hour | I24: (Input Productivity) → | K24: points/hour | M24: Productivity Increase | N24: =IFERROR(CONCATENATE(ROUND((J24/E24),1),"x"),"") ->  | O24: =+IF(N24="","",IF((J24/E24)<=1,"","Faster")) -> 
C26: Layout Duration | E26: =+E27/8 -> 0 | F26: days | J26: =+J27/8 -> 0 | K26: days | M26: Layout time reduction | N26: =+E26-J26 -> 0 | O26: days
E27: =IFERROR(E9/E24,0) -> 0 | F27: hours | J27: =IFERROR(E9/J24,0) -> 0 | K27: hours | N27: =+E27-J27 -> 0 | O27: hours
E28: =+E27*E20 -> 0 | F28: manhours | J28: =+J27*J20 -> 0 | K28: manhours | N28: 0 | O28: manhours
C30: Labor Costs | E30: =+E27*E20*E22 -> 0 | F30: =+_xlfn.XLOOKUP(E5,'Country Data'!A:A,'Country Data'!B:B) -> USD | J30: =+J27*J20*J22 -> 0 | K30: =+_xlfn.XLOOKUP(E5,'Country Data'!A:A,'Country Data'!B:B) -> USD | M30: Labor Cost Reduction | N30: =+E30-J30 -> 0 | O30: =+_xlfn.XLOOKUP(E5,'Country Data'!A:A,'Country Data'!B:B) -> USD
C32: SitePrint Usage Fee | J32: =+E9*J7 -> 0 | K32: =+_xlfn.XLOOKUP(E5,'Country Data'!A:A,'Country Data'!B:B) -> USD
C33: Robot Capping Discount | J33: =IFERROR(IF(J32/E11/E7<J9,0,((J9-(J32/E11/E7))*E7*E11)),0) -> 0 | K33: =+_xlfn.XLOOKUP(E5,'Country Data'!A:A,'Country Data'!B:B) -> USD
C34: Project Capping Discount | J34: =IFERROR(IF((J32+J33)/E7<J11,0,J11*(E7)-(J32+J33)),0) -> 0 | K34: =+_xlfn.XLOOKUP(E5,'Country Data'!A:A,'Country Data'!B:B) -> USD
C35: SitePrint Usage Fee After Cappings | J35: =+J32+J33+J34 -> 0 | K35: =+_xlfn.XLOOKUP(E5,'Country Data'!A:A,'Country Data'!B:B) -> USD
C37: Layout Operational Expenses (Excluding D&A) | E37: =+E30+E35 -> 0 | F37: =+_xlfn.XLOOKUP(E5,'Country Data'!A:A,'Country Data'!B:B) -> USD | J37: =+J35+J30 -> 0 | K37: =+_xlfn.XLOOKUP(E5,'Country Data'!A:A,'Country Data'!B:B) -> USD | M37: Layout cost reduction | N37: =+E37-J37 -> 0 | O37: =+_xlfn.XLOOKUP(E5,'Country Data'!A:A,'Country Data'!B:B) -> USD
C39: Layout cost per area | E39: =IFERROR(E37/E9,0) -> 0 | F39: =CONCATENATE(_xlfn.XLOOKUP(E5,'Country Data'!A:A,'Country Data'!B:B),"/","point") -> USD/point | J39: =IFERROR(J37/E9,0) -> 0 | K39: =CONCATENATE(_xlfn.XLOOKUP(E5,'Country Data'!A:A,'Country Data'!B:B),"/","point") -> USD/point | M39: =+CONCATENATE("Layout cost reduction/","point") -> Layout cost reduction/point | N39: =+E39-J39 -> 0 | O39: =+_xlfn.XLOOKUP(E5,'Country Data'!A:A,'Country Data'!B:B) -> USD
C42: Return on investment
C44: Iceberg Value
C45: Expected savings from Layout Labor Cost Reduction | D45: (Input savings) → | F45: =+_xlfn.XLOOKUP(E5,'Country Data'!A:A,'Country Data'!B:B) -> USD
C46: Expected savings from Schedule Reduction | D46: (Input savings) → | F46: =+_xlfn.XLOOKUP(E5,'Country Data'!A:A,'Country Data'!B:B) -> USD
C47: Expected savings from Rework | D47: (Input savings) → | F47: =+_xlfn.XLOOKUP(E5,'Country Data'!A:A,'Country Data'!B:B) -> USD
C48: Total Additional Savings | D48: (Input savings) → | E48: =+E45+E46+E47 -> 0 | F48: =+_xlfn.XLOOKUP(E5,'Country Data'!A:A,'Country Data'!B:B) -> USD
C50: Payback Period | E50: =IFERROR(IF((J5*E11+E13*E11)/(N39+E48/E9)<=0,"N/A",(J5*E11+E13*E11)/(N39+E48/E9)),"") ->  | F50: points
C51: Area threshold required to break even on the investment | E51: =IFERROR(IF(E50="N/A","N/A",E50/E9),"") ->  | F51: projects
E52: =IFERROR(IF(E50="N/A","N/A",E51*E7),"") ->  | F52: months
C54: Notes
C55: -
C56: -
C57: -
C58: -
C59: -
C60: -

Sheet ROI Chart Area (Project) (hidden)
B1: Year 1 | N1: Year 2 | Z1: Year 3 | AL1: Year 4 | AX1: Year 5
B2: Month 1 | C2: Month 2 | D2: Month 3 | E2: Month 4 | F2: Month 5 | G2: Month 6 | H2: Month 7 | I2: Month 8 | J2: Month 9 | K2: Month 10 | L2: Month 11 | M2: Month 12 | N2: Month 13 | O2: Month 14 | P2: Month 15 | Q2: Month 16 | R2: Month 17 | S2: Month 18 | T2: Month 19 | U2: Month 20 | V2: Month 21 | W2: Month 22 | X2: Month 23 | Y2: Month 24 | Z2: Month 25 | AA2: Month 26 | AB2: Month 27 | AC2: Month 28 | AD2: Month 29 | AE2: Month 30 | AF2: Month 31 | AG2: Month 32 | AH2: Month 33 | AI2: Month 34 | AJ2: Month 35 | AK2: Month 36 | AL2: Month 37 | AM2: Month 38 | AN2: Month 39 | AO2: Month 40 | AP2: Month 41 | AQ2: Month 42 | AR2: Month 43 | AS2: Month 44 | AT2: Month 45 | AU2: Month 46 | AV2: Month 47 | AW2: Month 48 | AX2: Month 49 | AY2: Month 50 | AZ2: Month 51 | BA2: Month 52 | BB2: Month 53 | BC2: Month 54 | BD2: Month 55 | BE2: Month 56 | BF2: Month 57 | BG2: Month 58 | BH2: Month 59 | BI2: Month 60
A3: Initial Investment | B3: =+'Area Model'!J13 -> 58800 | C3: =+B3 -> 58800 | D3: =+C3 -> 58800 | E3: 58800 | F3: 58800 | G3: 58800 | H3: 58800 | I3: 58800 | J3: 58800 | K3: 58800 | L3: 58800 | M3: 58800 | N3: 58800 | O3: 58800 | P3: 58800 | Q3: 58800 | R3: 58800 | S3: 58800 | T3: 58800 | U3: 58800 | V3: 58800 | W3: 58800 | X3: 58800 | Y3: 58800 | Z3: 58800 | AA3: 58800 | AB3: 58800 | AC3: 58800 | AD3: 58800 | AE3: 58800 | AF3: 58800 | AG3: 58800 | AH3: 58800 | AI3: 58800 | AJ3: 58800 | AK3: 58800 | AL3: 58800 | AM3: 58800 | AN3: 58800 | AO3: 58800 | AP3: 58800 | AQ3: 58800 | AR3: 58800 | AS3: 58800 | AT3: 58800 | AU3: 58800 | AV3: 58800 | AW3: 58800 | AX3: 58800 | AY3: 58800 | AZ3: 58800 | BA3: 58800 | BB3: 58800 | BC3: 58800 | BD3: 58800 | BE3: 58800 | BF3: 58800 | BG3: 58800 | BH3: 58800 | BI3: 58800
A4: Monthly Savings | B4: =+'Area Model'!N37/'Area Model'!E7+'Area Model'!E49/'Area Model'!E7 -> 9348.484848 | C4: =+B4 -> 9348.484848 | D4: =+C4 -> 9348.484848 | E4: 9348.484848 | F4: 9348.484848 | G4: 9348.484848 | H4: 9348.484848 | I4: 9348.484848 | J4: 9348.484848 | K4: 9348.484848 | L4: 9348.484848 | M4: 9348.484848 | N4: 9348.484848 | O4: 9348.484848 | P4: 9348.484848 | Q4: 9348.484848 | R4: 9348.484848 | S4: 9348.484848 | T4: 9348.484848 | U4: 9348.484848 | V4: 9348.484848 | W4: 9348.484848 | X4: 9348.484848 | Y4: 9348.484848 | Z4: 9348.484848 | AA4: 9348.484848 | AB4: 9348.484848 | AC4: 9348.484848 | AD4: 9348.484848 | AE4: 9348.484848 | AF4: 9348.484848 | AG4: 9348.484848 | AH4: 9348.484848 | AI4: 9348.484848 | AJ4: 9348.484848 | AK4: 9348.484848 | AL4: 9348.484848 | AM4: 9348.484848 | AN4: 9348.484848 | AO4: 9348.484848 | AP4: 9348.484848 | AQ4: 9348.484848 | AR4: 9348.484848 | AS4: 9348.484848 | AT4: 9348.484848 | AU4: 9348.484848 | AV4: 9348.484848 | AW4: 9348.484848 | AX4: 9348.484848 | AY4: 9348.484848 | AZ4: 9348.484848 | BA4: 9348.484848 | BB4: 9348.484848 | BC4: 9348.484848 | BD4: 9348.484848 | BE4: 9348.484848 | BF4: 9348.484848 | BG4: 9348.484848 | BH4: 9348.484848 | BI4: 9348.484848
A5: Accumulated Savings | B5: =+B4 -> 9348.484848 | C5: =+C4+B5 -> 18696.9697 | D5: =+D4+C5 -> 28045.45455 | E5: 37393.93939 | F5: 46742.42424 | G5: 56090.90909 | H5: 65439.39394 | I5: 74787.87879 | J5: 84136.36364 | K5: 93484.84848 | L5: 102833.3333 | M5: 112181.8182 | N5: 121530.303 | O5: 130878.7879 | P5: 140227.2727 | Q5: 149575.7576 | R5: 158924.2424 | S5: 168272.7273 | T5: 177621.2121 | U5: 186969.697 | V5: 196318.1818 | W5: 205666.6667 | X5: 215015.1515 | Y5: 224363.6364 | Z5: 233712.1212 | AA5: 243060.6061 | AB5: 252409.0909 | AC5: 261757.5758 | AD5: 271106.0606 | AE5: 280454.5455 | AF5: 289803.0303 | AG5: 299151.5152 | AH5: 308500 | AI5: 317848.4848 | AJ5: 327196.9697 | AK5: 336545.4545 | AL5: 345893.9394 | AM5: 355242.4242 | AN5: 364590.9091 | AO5: 373939.3939 | AP5: 383287.8788 | AQ5: 392636.3636 | AR5: 401984.8485 | AS5: 411333.3333 | AT5: 420681.8182 | AU5: 430030.303 | AV5: 439378.7879 | AW5: 448727.2727 | AX5: 458075.7576 | AY5: 467424.2424 | AZ5: 476772.7273 | BA5: 486121.2121 | BB5: 495469.697 | BC5: 504818.1818 | BD5: 514166.6667 | BE5: 523515.1515 | BF5: 532863.6364 | BG5: 542212.1212 | BH5: 551560.6061 | BI5: 560909.0909

Sheet ROI Chart Point (Project) (hidden)
B1: Year 1 | N1: Year 2 | Z1: Year 3 | AL1: Year 4 | AX1: Year 5
B2: Month 1 | C2: Month 2 | D2: Month 3 | E2: Month 4 | F2: Month 5 | G2: Month 6 | H2: Month 7 | I2: Month 8 | J2: Month 9 | K2: Month 10 | L2: Month 11 | M2: Month 12 | N2: Month 13 | O2: Month 14 | P2: Month 15 | Q2: Month 16 | R2: Month 17 | S2: Month 18 | T2: Month 19 | U2: Month 20 | V2: Month 21 | W2: Month 22 | X2: Month 23 | Y2: Month 24 | Z2: Month 25 | AA2: Month 26 | AB2: Month 27 | AC2: Month 28 | AD2: Month 29 | AE2: Month 30 | AF2: Month 31 | AG2: Month 32 | AH2: Month 33 | AI2: Month 34 | AJ2: Month 35 | AK2: Month 36 | AL2: Month 37 | AM2: Month 38 | AN2: Month 39 | AO2: Month 40 | AP2: Month 41 | AQ2: Month 42 | AR2: Month 43 | AS2: Month 44 | AT2: Month 45 | AU2: Month 46 | AV2: Month 47 | AW2: Month 48 | AX2: Month 49 | AY2: Month 50 | AZ2: Month 51 | BA2: Month 52 | BB2: Month 53 | BC2: Month 54 | BD2: Month 55 | BE2: Month 56 | BF2: Month 57 | BG2: Month 58 | BH2: Month 59 | BI2: Month 60
A3: Initial Investment | B3: =+'Point Model'!J13 -> 0 | C3: =+B3 -> 0 | D3: =+C3 -> 0 | E3: 0 | F3: 0 | G3: 0 | H3: 0 | I3: 0 | J3: 0 | K3: 0 | L3: 0 | M3: 0 | N3: 0 | O3: 0 | P3: 0 | Q3: 0 | R3: 0 | S3: 0 | T3: 0 | U3: 0 | V3: 0 | W3: 0 | X3: 0 | Y3: 0 | Z3: 0 | AA3: 0 | AB3: 0 | AC3: 0 | AD3: 0 | AE3: 0 | AF3: 0 | AG3: 0 | AH3: 0 | AI3: 0 | AJ3: 0 | AK3: 0 | AL3: 0 | AM3: 0 | AN3: 0 | AO3: 0 | AP3: 0 | AQ3: 0 | AR3: 0 | AS3: 0 | AT3: 0 | AU3: 0 | AV3: 0 | AW3: 0 | AX3: 0 | AY3: 0 | AZ3: 0 | BA3: 0 | BB3: 0 | BC3: 0 | BD3: 0 | BE3: 0 | BF3: 0 | BG3: 0 | BH3: 0 | BI3: 0
A4: Monthly Savings | B4: =+'Point Model'!N37/'Point Model'!E7+'Point Model'!E48/'Point Model'!E7 ->  | C4: =+B4 -> 
A5: Accumulated Savings | B5: =+B4 ->  | C5: =+C4+B5 ->  | D5: =+D4+C5 -> 
